[Event "56th Ilmar Raud Memorial 2022"]
[Site "Viljandi"]
[Date "2022.07.05"]
[Round "2.6"]
[White "Krivenko, Dion"]
[Black "Starostits, Ilmars"]
[Result "1-0"]
[ECO "C00"]
[WhiteElo "2090"]
[BlackElo "2441"]
[Annotator "TA"]
[PlyCount "69"]
[EventDate "2022.07.05"]
[EventType "swiss"]
[EventCountry "EST"]
[SourceTitle "playchess.com"]
[Source "ChessBase"]
[SourceQuality "1"]
[TimeControl "40/5400+30:900+30"]

{[%evp 9,69,74,45,45,62,51,63,63,66,66,64,60,67,43,56,36,53,44,61,64,77,63,60,66,165,153,155,157,161,163,217,221,191,189,214,122,85,119,131,79,162,118,181,163,166,181,181,144,144,159,331,262,273,269,243,236,422,193,648,650,2372,1970]} 1. e4 {[%emt 0:00:03]} e6 {[%emt 0:00:06]} 2. Qe2 {[%emt 0:02:14]} d6 {[%emt 0:00:26]} 3. Nf3 {[%emt 0:00:53] [#]} Nd7 $146 {[%emt 0:00:09]} ({Predecessor:} 3... e5 4. g3 Nf6 5. Bg2 Be7 6. O-O O-O 7. c3 c5 8. d3 h6 9. Be3 Nc6 10. Rd1 {1-0 (57) Zverka,P (1000)-Hyros,S (1000) Liptovsky Mikulas 2016}) 4. g3 {[%emt 0:01:50]} b6 {[%emt 0:00:06]} 5. Bg2 {[%emt 0:00:04]} Bb7 {[%emt 0:00:09]} 6. O-O {[%emt 0:00:17] C00: French: Unusual White 2nd moves.} g6 {[%emt 0:00:04]} 7. d4 {[%emt 0:00:14]} Bg7 {[%emt 0:00:05]} 8. c4 {[%emt 0:00:20] White is slightly better.} Ne7 {[%emt 0:00:45]} 9. Nc3 {[%emt 0:00:56]} O-O {[%emt 0:00:06]} 10. Rd1 {[%emt 0:01:59]} e5 {[%emt 0:01:19]} 11. Be3 {[%emt 0:09:30]} (11. dxe5 {is more complex.} Nxe5 12. Nxe5 Bxe5 13. Bh6) 11... Re8 {[%emt 0:03:44]} 12. d5 {[%emt 0:06:37]} a5 {[%emt 0:00:48]} 13. a3 {[%emt 0:01:21]} a4 {[%emt 0:05:28]} 14. Qc2 {[%emt 0:03:01] White is more active.} Nf6 {[%emt 0:03:03]} 15. Nxa4 {[%emt 0:12:40]} (15. Nh4 {feels hotter.} Qd7 16. Bf1 h6 17. f3) 15... Nxe4 $1 {[%emt 0:00:08][%cal Oe7f5]} 16. Nxb6 $1 {[%emt 0:56:31]} (16. Qxe4 $6 Rxa4 17. b3 Ra8 $15) 16... Nxg3 {[%emt 0:04:27]} (16... cxb6 $14 17. Qxe4 h6) 17. Nxa8 $18 {[%emt 0:00:00]} (17. fxg3 cxb6 18. Qb3 Rb8 $11) 17... Ngf5 {[%emt 0:00:07] [#]} 18. Nxc7 {[%emt 0:00:00]} Qxc7 {[%emt 0:00:26]} 19. Qe2 {[%emt 0:00:00]} Ba6 {[%emt 0:04:55]} (19... Nxe3 $142 20. fxe3 Qb6) 20. Rac1 {[%emt 0:00:00]} Nxe3 {[%emt 0:00:59]} 21. fxe3 {[%emt 0:00:00]} Bh6 {[%emt 0:00:10]} 22. Rc3 {[%emt 0:00:00]} (22. Qf2 $18) 22... e4 $16 {[%emt 0:01:24] [#]} 23. Ne1 {[%emt 0:00:00]} Nf5 {[%emt 0:03:19]} 24. Nc2 {[%emt 0:00:00]} (24. Bh3 $142) 24... Re5 {[%emt 0:05:20]} (24... Qe7 $16 {keeps fighting.}) 25. Qf2 {[%emt 0:00:00]} Qd8 {[%emt 0:05:39]} (25... Bg7 $16 {is a better defense.} 26. Bh3 Qe7) 26. Nb4 {[%emt 0:00:00] Hoping for Nc6.} Bb7 {[%emt 0:06:37]} 27. Nc6 {[%emt 0:00:00]} Bxc6 {[%emt 0:00:09]} 28. dxc6 {[%emt 0:00:00] aiming for Rd5.} Qb6 {[%emt 0:00:08]} 29. Rd5 {[%emt 0:00:00][%cal Bd1d5,Bd5d6,Bd6d7][%mdl 32] Strongly threatening Rxe5.} ({Inferior is} 29. c5 Rxc5 30. Re1 (30. Bxe4 $2 Rxc3 31. Kh1 Rc4 $19) (30. Rxc5 $2 Bxe3 31. Rc2 Bxf2+ 32. Rxf2 Qxc6 $19) 30... Rxc3 31. bxc3 Qxc6 $15) 29... Re7 {[%emt 0:03:30] Black cannot hold the game after this.} (29... Bg7 $16 30. Rxe5 Bxe5) 30. Bh3 {[%emt 0:00:00]} Bxe3 {[%emt 0:03:01] [#]} 31. Rxe3 {[%emt 0:00:00][%mdl 512]} Nxe3 {[%emt 0:00:05]} 32. Rxd6 {[%emt 0:00:00] Rd7 is the strong threat.} f5 $2 {[%emt 0:03:10]} (32... Nxc4 33. Qxb6 Nxb6) 33. b4 {[%emt 0:00:00]} (33. Bf1 $142) 33... Qa7 $2 {[%emt 0:06:42]} (33... Nxc4 34. Qxb6 Nxb6) 34. Rd7 $18 {[%emt 0:01:03]} Qxa3 {[%emt 0:00:04]} 35. c7 {[%emt 0:04:15] Weighted Error Value: White=0.24 (precise) /Black=0.49} ({Not} 35. Rxe7 Qc1+ 36. Bf1 Nxf1 $11) 1-0

[Event "56th Ilmar Raud Memorial 2022"]
[Site "Viljandi"]
[Date "2022.07.05"]
[Round "3.1"]
[White "Cruz Lledo, Pablo"]
[Black "Laurusas, Tomas"]
[Result "0-1"]
[ECO "D12"]
[WhiteElo "2433"]
[BlackElo "2561"]
[Annotator "TA"]
[PlyCount "98"]
[EventDate "2022.07.05"]
[EventType "swiss"]
[EventCountry "EST"]
[SourceTitle "playchess.com"]
[Source "ChessBase"]
[SourceQuality "1"]
[TimeControl "40/5400+30:900+30"]

{[%evp 15,98,18,12,13,10,16,24,15,14,9,13,20,14,17,13,0,0,0,0,0,0,0,16,0,0,-12,-16,-14,-6,-30,-31,-31,-16,-29,-10,-14,0,-14,0,-14,0,0,7,0,0,-186,-171,-190,-184,-160,-169,-183,-166,-145,-152,-165,-160,-141,-114,-133,-155,-163,-147,-218,-182,-166,-165,-355,-349,-460,-457,-920,-1235,-1175,-1078,-1426,-1399,-1233,-1326,-1097,-1051,-1531,-1529,-5967,-5306]} 1. d4 {[%emt 0:00:02]} d5 {[%emt 0:03:07]} 2. c4 {[%emt 0:00:07]} c6 {[%emt 0:00:04]} 3. Nf3 {[%emt 0:00:08]} Nf6 {[%emt 0:00:05]} 4. e3 {[%emt 0:00:06]} Bf5 {[%emt 0:01:35]} 5. Nc3 {[%emt 0:00:07]} e6 {[%emt 0:00:06]} 6. Bd3 {[%emt 0:00:09]} Bg6 {[%emt 0:03:11]} 7. O-O {[%emt 0:00:33]} Nbd7 {[%emt 0:00:24]} 8. Qe2 {[%emt 0:00:22]} Bb4 {[%emt 0:06:58]} 9. Bd2 {[%emt 0:00:10][%cal Oc3d5] D12: Slav Defence: 3 Nf3 Nf6 4 e3 Bf5.} a5 {[%emt 0:00:24]} 10. a3 {[%emt 0:00:59]} Be7 $5 {[%emt 0:01:05][%mdl 4] An interesting side line.} 11. e4 {[%emt 0:02:51] White has an edge.} dxe4 {[%emt 0:00:40]} (11... Nxe4 {keeps more tension.} 12. Nxe4 dxe4 13. Bxe4 Bxe4 14. Qxe4 O-O) 12. Nxe4 {[%emt 0:00:29]} Nxe4 {[%emt 0:01:16]} 13. Bxe4 {[%emt 0:00:07] [#]} Bxe4 $146 {[%emt 0:00:10]} ({Predecessor:} 13... O-O) 14. Qxe4 {[%emt 0:00:12]} a4 {[%emt 0:00:11]} 15. Rfd1 {[%emt 0:05:46]} O-O {[%emt 0:01:09]} 16. Bc3 {[%emt 0:01:30]} Nf6 {[%emt 0:08:47]} 17. Qe2 {[%emt 0:00:16]} Qc7 {[%emt 0:00:05]} 18. Rac1 {[%emt 0:07:40]} Qf4 {[%emt 0:01:57]} 19. Bd2 {[%emt 0:25:13]} Qe4 {[%emt 0:10:30]} 20. Qxe4 {[%emt 0:08:30]} Nxe4 {[%emt 0:00:08]} 21. Be3 {[%emt 0:00:11]} Rfd8 {[%emt 0:00:36]} 22. Nd2 {[%emt 0:00:26]} Nxd2 {[%emt 0:12:33]} 23. Rxd2 {[%emt 0:00:03]} Bf6 {[%emt 0:00:09]} 24. Kf1 {[%emt 0:04:19]} Rd7 {[%emt 0:00:40]} 25. c5 {[%emt 0:01:28]} h5 {[%emt 0:07:16]} 26. Rc4 {[%emt 0:00:53]} Kh7 {[%emt 0:02:40]} 27. Ke2 {[%emt 0:02:18]} Kg6 {[%emt 0:00:36]} 28. Rb4 {[%emt 0:00:59]} Kf5 {[%emt 0:01:40]} 29. f4 {[%emt 0:06:30]} Be7 {[%emt 0:00:47] Hoping for ...b5.} 30. Kf3 $2 {[%emt 0:01:48]} (30. Rc4 $11) 30... b5 $19 {[%emt 0:00:09]} 31. b3 {[%emt 0:02:03] [#]} Bd8 $1 {[%emt 0:06:26]} 32. bxa4 {[%emt 0:00:05]} Ba5 {[%emt 0:00:03]} ({Stronger than} 32... Rxa4 33. Rxa4 bxa4 34. Rb2 $11) 33. axb5 {[%emt 0:00:21]} Bxb4 {[%emt 0:00:02]} 34. axb4 {[%emt 0:04:12]} cxb5 {[%emt 0:00:15][%mdl 4096] Endgame KRR-KRB} 35. h3 {[%emt 0:01:35]} h4 {[%emt 0:00:15]} 36. Rc2 {[%emt 0:03:01]} Rd5 {[%emt 0:01:17] Black is more active.} 37. c6 {[%emt 0:00:46]} Rc8 {[%emt 0:05:37]} 38. Bf2 {[%emt 0:00:16]} f6 {[%emt 0:03:19]} 39. c7 {[%emt 0:00:49]} (39. Ke3 $17 {was necessary.}) 39... Rd7 {[%emt 0:04:11]} 40. Rc5+ {[%emt 0:00:00]} Kg6 {[%emt 0:00:00]} 41. f5+ $2 {[%emt 0:21:21]} (41. Rxb5 Rcxc7 42. Rc5) 41... exf5 {[%emt 0:00:44]} 42. d5 {[%emt 0:02:33]} Rcxc7 {[%emt 0:00:53] Black is clearly winning.} 43. d6 {[%emt 0:00:13]} (43. Rxb5 $142 Rc3+ 44. Ke2) 43... Rxc5 {[%emt 0:07:21]} 44. bxc5 {[%emt 0:00:02] KR-KB} Kf7 {[%emt 0:00:26]} 45. Bxh4 {[%emt 0:08:21]} Ke6 {[%emt 0:00:40]} 46. Be1 {[%emt 0:03:09]} Ra7 {[%emt 0:00:08]} 47. Ke3 {[%emt 0:00:47]} Ra2 {[%emt 0:00:12]} 48. Kd3 {[%emt 0:04:33]} Rxg2 {[%emt 0:00:59] [#] And now ...f4 would win.} 49. Kc3 {[%emt 0:00:24]} Re2 {[%emt 0:00:41] Weighted Error Value: White=0.74/Black=0.04 (flawless)} 0-1

[Event "56th Ilmar Raud Memorial 2022"]
[Site "Viljandi"]
[Date "2022.07.05"]
[Round "3.2"]
[White "Kiik, Kalle"]
[Black "Pultinevicius, Paulius"]
[Result "1/2-1/2"]
[ECO "D41"]
[WhiteElo "2365"]
[BlackElo "2539"]
[Annotator "TA"]
[PlyCount "124"]
[EventDate "2022.07.05"]
[EventType "swiss"]
[EventCountry "EST"]
[SourceTitle "playchess.com"]
[Source "ChessBase"]
[SourceQuality "1"]
[TimeControl "40/5400+30:900+30"]

{[%evp 20,124,-6,0,44,64,41,22,81,83,85,76,96,56,63,53,92,56,59,66,45,53,53,43,43,50,44,44,44,44,44,45,54,49,40,39,44,51,77,69,75,67,79,81,91,8,64,19,98,98,98,77,98,98,99,68,62,72,112,110,142,146,190,188,169,111,108,71,70,60,59,61,70,15,35,8,8,8,16,16,107,115,109,21,22,22,22,8,8,8,8,8,8,8,8,8,8,8,8,8,8,8,8,8,8,8,8]} 1. e4 {[%emt 0:00:31]} c6 {[%emt 0:02:57]} 2. c4 {[%emt 0:00:43]} d5 {[%emt 0:00:24]} 3. cxd5 {[%emt 0:00:11]} cxd5 {[%emt 0:00:04]} 4. exd5 {[%emt 0:00:07]} Nf6 {[%emt 0:00:03]} 5. Nc3 {[%emt 0:00:12]} Nxd5 {[%emt 0:00:06]} 6. Bc4 {[%emt 0:00:19]} e6 {[%emt 0:01:17]} 7. Nf3 {[%emt 0:01:13]} Be7 {[%emt 0:00:10]} 8. O-O {[%emt 0:01:40]} O-O {[%emt 0:00:23]} 9. d4 {[%emt 0:00:06]} Nc6 {[%emt 0:09:42]} 10. Re1 {[%emt 0:00:43]} Bf6 {[%emt 0:05:40]} 11. Ne4 {[%emt 0:05:20]} Nce7 {[%emt 0:00:14] D41: Queen's Gambit Declined: Semi-Tarrasch with 5 cxd5.} 12. Nxf6+ {[%emt 0:05:24]} Nxf6 {[%emt 0:01:20]} 13. Bg5 {[%emt 0:01:16] [#]} h6 $146 {[%emt 0:03:36]} (13... b6 $11 {keeps the balance.}) ({Predecessor:} 13... Nf5 14. Rc1 h6 15. Bf4 Nd5 16. Bd2 b6 17. Ne5 Bb7 18. Bd3 Nf6 19. Bb4 Re8 {0-1 (45) Plotkin,M (2430)-Molina,R (2434) Tornelo INT 2021}) 14. Bxf6 $16 {[%emt 0:01:32]} gxf6 {[%emt 0:00:11]} 15. Qd2 {[%emt 0:00:39]} Kg7 {[%emt 0:01:15]} 16. Re4 {[%emt 0:08:29] White is much more active. The black rooks are badly placed.} Ng6 {[%emt 0:04:03]} 17. Nh4 {[%emt 0:13:12]} Qd6 {[%emt 0:09:54]} 18. Nxg6 {[%emt 0:02:35]} fxg6 {[%emt 0:00:04]} 19. Rae1 {[%emt 0:01:11][%cal Rc4e6]} Re8 {[%emt 0:00:40]} 20. Qe3 {[%emt 0:08:03]} Bd7 {[%emt 0:04:09]} 21. Bxe6 {[%emt 0:03:44]} Bxe6 {[%emt 0:00:29]} 22. Rxe6 {[%emt 0:00:07]} Rxe6 {[%emt 0:00:03]} 23. Qxe6 {[%emt 0:00:08]} Qxe6 {[%emt 0:00:09]} 24. Rxe6 $14 {[%emt 0:00:05][%mdl 4096] Endgame KR-KR} Rc8 {[%emt 0:00:22]} 25. g3 {[%emt 0:01:28] And now Re7+ would win.} Kf7 {[%emt 0:01:00] Prevents Re7+.} 26. Re3 {[%emt 0:01:06]} Rc2 {[%emt 0:02:00]} 27. Rb3 {[%emt 0:00:50]} b6 {[%emt 0:00:32]} 28. Kg2 {[%emt 0:07:24]} Ke6 {[%emt 0:04:22]} 29. Kf3 $1 {[%emt 0:01:15]} Kd5 {[%emt 0:01:02]} 30. Ke3 {[%emt 0:00:13]} h5 {[%emt 0:01:36]} 31. h4 {[%emt 0:00:53]} Kd6 {[%emt 0:01:19]} 32. Rb5 {[%emt 0:03:03]} (32. Ra3 $16) 32... Kc6 {[%emt 0:00:38]} (32... Rc1 $1 $11) 33. Rb4 {[%emt 0:01:00]} Kd5 {[%emt 0:04:12]} (33... Rc1 $11) 34. a4 $1 $16 {[%emt 0:04:50]} Kd6 {[%emt 0:01:24]} 35. Rb5 {[%emt 0:04:42]} Kc6 {[%emt 0:00:48]} 36. Rb3 {[%emt 0:12:16]} Kd6 {[%emt 0:01:42]} 37. Rb4 {[%emt 0:00:32]} Kc6 {[%emt 0:02:03]} 38. Rb5 {[%emt 0:02:50]} Rc4 {[%emt 0:07:07]} 39. d5+ $1 {[%emt 0:02:50]} Kb7 {[%emt 0:08:54] [#]} 40. a5 $1 {[%emt 0:00:00]} Ra4 {[%emt 0:00:00]} 41. axb6 {[%emt 0:05:38]} axb6 {[%emt 0:01:11] [#]} 42. Rb3 {[%emt 0:00:28]} (42. f4 $1 $18) 42... Ra5 {[%emt 0:00:35]} 43. Rd3 {[%emt 0:01:27]} Rb5 {[%emt 0:01:27]} 44. d6 {[%emt 0:03:46][%cal Bd5d6,Bd6d7][%mdl 32] d7 would kill now.} Kc8 {[%emt 0:00:39]} 45. d7+ {[%emt 0:00:29]} Kd8 {[%emt 0:00:03]} 46. Rd6 {[%emt 0:01:04]} (46. b3 $1 $14) 46... g5 $1 $11 {[%emt 0:01:01]} 47. hxg5 {[%emt 0:03:12]} (47. Rxf6 $5 {[%cal Rh4g5]} gxh4 48. gxh4 $14) 47... fxg5 {[%emt 0:00:18]} 48. Rd2 {[%emt 0:00:48] Black must now prevent Ke4.} Re5+ {[%emt 0:04:35]} 49. Kf3 {[%emt 0:00:27]} Rf5+ {[%emt 0:01:47]} (49... g4+ $11 50. Kf4 Rb5) 50. Ke4 $16 {[%emt 0:00:16]} Rf7 {[%emt 0:01:21]} 51. f4 {[%emt 0:01:49]} (51. f3 $16) 51... gxf4 {[%emt 0:00:48] The position is equal.} 52. gxf4 {[%emt 0:00:06]} h4 $1 {[%emt 0:00:40][%cal Bh5h4,Bh4h3,Bh3h2][%mdl 32]} 53. Rd6 {[%emt 0:02:38]} Rh7 {[%emt 0:00:11] Prevents Rh6.} 54. Rxb6 {[%emt 0:00:36] White wants to mate with Rb8+.} Rh5 {[%emt 0:00:25]} (54... h3 {is a self mate.} 55. Rb8+ Kxd7 56. Rb7+ Ke6 57. Rxh7 h2 58. Rxh2 Ke7 59. Ke5) 55. Rd6 {[%emt 0:00:52]} ({Avoid the trap} 55. f5 $2 h3 56. Ke5 h2 $19) 55... h3 $132 {[%emt 0:01:31][%mdl 2048] ( -> ...h2). Black is fighting back} 56. Rd1 {[%emt 0:00:05] aiming for Kf3.} h2 {[%emt 0:00:21]} 57. Rh1 {[%emt 0:00:05]} Kxd7 {[%emt 0:00:29]} 58. Kf3 {[%emt 0:00:17] Threatens to win with Kg3.} Ke6 {[%emt 0:00:22]} 59. Kg4 {[%emt 0:01:06]} Rh8 {[%emt 0:00:09]} 60. Kg3 {[%emt 0:01:44]} Kf5 {[%emt 0:00:08]} 61. Rxh2 {[%emt 0:00:31]} Rxh2 {[%emt 0:00:06]} 62. Kxh2 {[%emt 0:00:05]} Kxf4 {[%emt 0:00:05] Weighted Error Value: White=0.15 (very precise) /Black=0.16 (very precise)} 1/2-1/2

[Event "56th Ilmar Raud Memorial 2022"]
[Site "Viljandi"]
[Date "2022.07.05"]
[Round "3.3"]
[White "Maiorov, Nikita"]
[Black "Krivenko, Dion"]
[Result "1/2-1/2"]
[ECO "E68"]
[WhiteElo "2474"]
[BlackElo "2090"]
[Annotator "TA"]
[PlyCount "76"]
[EventDate "2022.07.05"]
[EventType "swiss"]
[EventCountry "EST"]
[SourceTitle "playchess.com"]
[Source "ChessBase"]
[SourceQuality "1"]
[TimeControl "40/5400+30:900+30"]

{[%evp 20,76,38,25,49,55,50,54,71,50,87,72,77,79,78,73,95,39,39,8,71,52,74,75,67,49,54,41,49,18,40,0,28,-17,5,25,9,29,29,11,92,-110,-100,-116,-104,-124,-120,-124,-67,-137,-125,-137,-47,-39,-46,-44,0,0,9]} 1. d4 {[%emt 0:00:05]} Nf6 {[%emt 0:00:05]} 2. c4 {[%emt 0:00:02]} g6 {[%emt 0:00:06]} 3. g3 {[%emt 0:00:04]} Bg7 {[%emt 0:00:04]} 4. Bg2 {[%emt 0:00:02]} O-O {[%emt 0:00:10]} 5. Nf3 {[%emt 0:00:02]} d6 {[%emt 0:00:11]} 6. O-O {[%emt 0:00:05]} Nbd7 {[%emt 0:00:13]} 7. Qc2 {[%emt 0:04:32]} e5 {[%emt 0:00:28]} 8. Rd1 {[%emt 0:00:04]} exd4 {[%emt 0:03:38]} 9. Nxd4 {[%emt 0:00:06]} c6 {[%emt 0:04:08]} 10. e4 {[%emt 0:10:10]} Re8 {[%emt 0:05:17]} 11. Nc3 {[%emt 0:04:19]} Qc7 {[%emt 0:02:57] E68: King's Indian: Fianchetto: 6...Nbd7 7 0-0 e5 8 e4.} 12. h3 {[%emt 0:04:37]} a6 {[%emt 0:00:20]} 13. Bf4 {[%emt 0:02:21]} Ne5 {[%emt 0:01:01] White is slightly better.} 14. b3 {[%emt 0:02:26] [#]} h6 $146 {[%emt 0:04:15]} ({Predecessor:} 14... Bd7 15. Bg5 c5 16. Nde2 Bc6 17. a4 Ned7 18. Bf4 Re6 19. Qd3 Bf8 20. g4 Rb8 {1-0 (67) Marcu,V (2022)-Van der Plas,R (2290) ICCF email 2015}) 15. Be3 {[%emt 0:02:33]} Rb8 {[%emt 0:13:02]} 16. a4 {[%emt 0:04:22]} c5 {[%emt 0:08:41]} 17. Nde2 {[%emt 0:00:07]} Kh7 {[%emt 0:00:32]} 18. f4 {[%emt 0:10:05]} ({White should try} 18. Rd2 $16) 18... Nc6 $14 {[%emt 0:02:56]} 19. Bf2 {[%emt 0:00:54]} h5 {[%emt 0:09:06]} (19... b6 $11) 20. Rac1 {[%emt 0:01:16]} b6 {[%emt 0:04:09]} 21. Qd2 {[%emt 0:07:04]} Bf8 {[%emt 0:03:02]} 22. Nd5 {[%emt 0:01:46]} (22. f5 {with more complications.} Bb7 23. Qg5 Be7 24. Qf4) 22... Nxd5 {[%emt 0:00:42]} 23. cxd5 {[%emt 0:00:05]} Na5 {[%emt 0:01:24][%cal Bc6a5,Ba5c4,Bc4a3][%mdl 32]} 24. Qc2 {[%emt 0:04:17]} Qd8 {[%emt 0:01:30]} 25. Be1 {[%emt 0:01:16]} (25. b4 $5 {[%cal Rb4a5]} cxb4 26. Nd4 $14) 25... b5 {[%emt 0:04:38]} 26. Bc3 {[%emt 0:12:39]} (26. b4 $5 {[%cal Rb4a5]}) 26... bxa4 {[%emt 0:01:30]} (26... b4 $5 {[%cal Rb4c3]} 27. Bb2 Bd7 $11) 27. bxa4 {[%emt 0:00:04]} Nc4 {[%emt 0:03:29] White must now prevent ...Ne3.} 28. Ba1 {[%emt 0:00:47]} Rb4 {[%emt 0:03:42]} 29. Rb1 {[%emt 0:02:22] Strongly threatening Rxb4.} Qa5 {[%emt 0:06:36]} (29... Qb6 $1 $11 {remains equal.}) 30. Bc3 $2 {[%emt 0:12:14]} ({Resist} 30. Qc3 Bh6 $14) (30. Qd3 $1 $16 {stays on course.}) 30... Qxa4 $17 {[%emt 0:01:37]} 31. Qd3 {[%emt 0:01:38]} Rxb1 {[%emt 0:01:08]} 32. Rxb1 {[%emt 0:00:52]} Na3 $1 {[%emt 0:01:34]} 33. Ra1 {[%emt 0:02:08] [#] Threatens to win with Bf6.} Qc4 {[%emt 0:01:38]} (33... Qc2 $1 $17 {[%cal Rc2d3]} 34. Nc1 {[#]} f5 $1) 34. Qd2 {[%emt 0:00:47]} (34. Qxc4 $15 Nxc4 35. Bf6) 34... Nb5 {[%emt 0:00:35]} 35. Bf6 {[%emt 0:00:06]} Qb4 {[%emt 0:05:11]} (35... Rxe4 $17 36. Bxe4 Qxe4) 36. Qxb4 $15 {[%emt 0:01:15]} cxb4 {[%emt 0:00:02]} 37. Ra4 {[%emt 0:00:05]} a5 {[%emt 0:09:23]} (37... Bg7 $15 38. Bxg7 Kxg7) 38. Rxa5 $11 {[%emt 0:11:53]} Bd7 {[%emt 0:00:30] Weighted Error Value: White=0.23 (precise) /Black=0.22 (precise)} 1/2-1/2

[Event "56th Ilmar Raud Memorial 2022"]
[Site "Viljandi"]
[Date "2022.07.05"]
[Round "3.4"]
[White "Povilaitis, Tomas"]
[Black "Miezis, Normunds"]
[Result "0-1"]
[ECO "B42"]
[WhiteElo "2002"]
[BlackElo "2446"]
[Annotator "TA"]
[PlyCount "66"]
[EventDate "2022.07.05"]
[EventType "swiss"]
[EventCountry "EST"]
[SourceTitle "playchess.com"]
[Source "ChessBase"]
[SourceQuality "1"]
[TimeControl "40/5400+30:900+30"]

{[%evp 13,66,32,41,5,0,18,31,-25,0,-20,0,0,0,0,0,0,16,0,0,0,2,1,19,9,18,10,20,14,61,61,86,99,69,87,86,76,68,16,22,8,18,-213,-200,-320,-333,-320,-317,-339,-346,-1196,-1209,-1191,-1187,-1898,-1845]} 1. e4 {[%emt 0:00:02]} c5 {[%emt 0:02:42]} 2. Nf3 {[%emt 0:00:09]} e6 {[%emt 0:00:11]} 3. d4 {[%emt 0:00:06]} cxd4 {[%emt 0:00:08]} 4. Nxd4 {[%emt 0:00:04]} a6 {[%emt 0:00:15]} 5. Bd3 {[%emt 0:00:06]} g6 {[%emt 0:01:26]} 6. Be3 {[%emt 0:00:35]} Bg7 {[%emt 0:00:20]} 7. O-O {[%emt 0:00:09] was the old line (7.Nc3).} Ne7 {[%emt 0:01:26]} 8. c3 {[%emt 0:01:29] B42: Sicilian: Kan Variation: 5 Bd3.} d5 {[%emt 0:03:17]} 9. Nd2 {[%emt 0:08:39]} O-O {[%emt 0:02:28] [#]} 10. Be2 $146 {[%emt 0:05:00]} ({White should try} 10. Re1 $14) ({Predecessor:} 10. N2f3 e5 11. Nb3 dxe4 12. Bxe4 Qxd1 13. Rfxd1 f5 14. Bc2 e4 15. Nfd4 h6 16. Nc5 Bxd4 17. cxd4 {½-½ (25) Svidler,P (2714)-Frolyanov,D (2542) Chess.com INT 2021}) 10... h6 {[%emt 0:12:39]} (10... e5 $5 {[%cal Re5d4]} 11. Nc2 d4 12. cxd4 exd4 $15) 11. N4b3 {[%emt 0:12:10]} Nd7 {[%emt 0:03:02][%cal Bb8d7,Bd7e5,Be5f3][%mdl 32]} 12. Bf3 {[%emt 0:03:15]} Ne5 {[%emt 0:05:13]} 13. exd5 {[%emt 0:01:05]} Nxd5 {[%emt 0:02:30]} 14. Bd4 {[%emt 0:02:43]} Nxf3+ {[%emt 0:05:44]} 15. Nxf3 {[%emt 0:00:27]} f6 {[%emt 0:03:10]} 16. Qc2 {[%emt 0:06:07]} e5 {[%emt 0:03:41]} 17. Bc5 {[%emt 0:00:39]} Bf5 {[%emt 0:00:53]} 18. Qd2 {[%emt 0:01:28]} Re8 {[%emt 0:18:56]} 19. Nh4 $1 {[%emt 0:02:52]} Be6 {[%emt 0:07:26]} 20. Nxg6 {[%emt 0:05:06]} Qc7 {[%emt 0:00:55]} (20... Kh7 $11 {is more appropriate.} 21. Nh4 f5) 21. c4 $14 {[%emt 0:06:54]} Nb6 {[%emt 0:03:32]} 22. Qa5 {[%emt 0:05:19]} Qf7 {[%emt 0:00:40]} 23. Nxe5 {[%emt 0:06:33]} (23. Bxb6 Qxg6 24. Rac1 Rac8 $11) 23... fxe5 {[%emt 0:00:25]} 24. Qxb6 {[%emt 0:00:06]} Bxc4 {[%emt 0:01:04]} 25. Rfe1 {[%emt 0:02:29]} (25. Rfd1 $1 $14) 25... Re6 $11 {[%emt 0:01:00][%cal Be8e6,Be6g6,Bg6g2,Bg2h2][%mdl 32]} 26. Qb4 {[%emt 0:00:28]} Rg6 {[%emt 0:00:29][%cal Og6g2] White must now prevent ...Rxg2+!} 27. Re3 $2 {[%emt 0:03:53] [#] Loses the game.} (27. Nd2 $11 {and White stays safe.} Bd5 28. f3) 27... b6 $1 $40 {[%emt 0:03:01][%mdl 1152] Black has strong compensation. Black attacks with force.} (27... Qd5 28. Rg3 Rxg3 29. hxg3 $14) 28. Be7 {[%emt 0:03:51]} (28. Rg3 $142 bxc5 29. Nxc5) 28... a5 {[%emt 0:01:34]} ({Weaker is} 28... Qd5 29. Rg3 a5 30. Qe1 (30. Qc3 Rxg3 31. hxg3 Re8 $11) 30... Rxg3 31. hxg3 $11) 29. Qa3 {[%emt 0:00:54]} Ra7 {[%emt 0:07:09]} ({Wrong is} 29... Qd5 $2 30. Rg3 Rxg3 31. hxg3) 30. Nd2 {[%emt 0:07:30]} Bd5 {[%emt 0:00:58] A strong pair of Bishops.} ({Not} 30... Qd5 31. Ne4 $14) 31. Bh4 $2 {[%emt 0:00:06] [#]} (31. Rg3 Rxe7 32. Nf1) 31... Rxg2+ {[%emt 0:00:23] Black is clearly winning.} 32. Kf1 {[%emt 0:00:07]} Rxh2 {[%emt 0:00:14]} 33. Rh3 {[%emt 0:00:27]} Bg2+ {[%emt 0:00:13] Weighted Error Value: White=0.70/Black=0.05 (flawless)} 0-1